[Event "*** Titled Tuesday Blitz"]
[Site "Chess.com"]
[Date "2018.11.06"]
[Round "5"]
[White "Koksik_13"]
[Black "gmjlh"]
[Result "1-0"]
[WhiteElo "2710"]
[BlackElo "2619"]
[TimeControl "180+2"]
[EndTime "14:08:57 PST"]
[Termination "Koksik_13 won by checkmate"]

1. e4 {[%clk 0:03:01.9]} 1... c6 {[%clk 0:03:00.7]} 2. d4 {[%clk 0:03:02.1]}
2... d5 {[%clk 0:03:01.8]} 3. Nc3 {[%clk 0:03:01.2]} 3... dxe4 {[%clk 0:03:03]}
4. Nxe4 {[%clk 0:03:01.8]} 4... Nf6 {[%clk 0:03:04.4]} 5. Ng3 {[%clk 0:03:00.3]}
5... Bg4 {[%clk 0:03:04.6]} 6. Be2 {[%clk 0:02:58.8]} 6... Bxe2 {[%clk
0:03:05.5]} 7. N1xe2 {[%clk 0:03:00.7]} 7... e6 {[%clk 0:03:06.5]} 8. O-O {[%clk
0:03:01.8]} 8... Bd6 {[%clk 0:03:07.6]} 9. Bf4 {[%clk 0:03:02.2]} 9... O-O
{[%clk 0:03:07.4]} 10. c3 {[%clk 0:03:01.8]} 10... Bxf4 {[%clk 0:03:07.9]} 11.
Nxf4 {[%clk 0:03:02.4]} 11... Nbd7 {[%clk 0:03:09]} 12. Qf3 {[%clk 0:03:02.5]}
12... Re8 {[%clk 0:03:00.4]} 13. Nfh5 {[%clk 0:02:53.9]} 13... Nxh5 {[%clk
0:03:00.2]} 14. Nxh5 {[%clk 0:02:54.1]} 14... g6 {[%clk 0:03:00.2]} 15. Ng3
{[%clk 0:02:51.3]} 15... Qf6 {[%clk 0:02:59.9]} 16. Qd3 {[%clk 0:02:47.8]} 16...
e5 {[%clk 0:02:55.7]} 17. d5 {[%clk 0:02:38.1]} 17... e4 {[%clk 0:02:40.8]} 18.
Nxe4 {[%clk 0:02:33.3]} 18... Qf5 {[%clk 0:02:40.1]} 19. dxc6 {[%clk 0:02:26.4]}
19... Ne5 {[%clk 0:02:34.3]} 20. Qc2 {[%clk 0:02:24.2]} 20... Nxc6 {[%clk
0:02:11.7]} 21. Rae1 {[%clk 0:02:16.5]} 21... Re6 {[%clk 0:02:03.2]} 22. Re2
{[%clk 0:02:09.5]} 22... Rd8 {[%clk 0:01:57.5]} 23. Rfe1 {[%clk 0:02:07.6]}
23... h5 {[%clk 0:01:54.7]} 24. h3 {[%clk 0:02:07.5]} 24... Kg7 {[%clk
0:00:50.5]} 25. Qc1 {[%clk 0:02:07.7]} 25... Ne5 {[%clk 0:00:43.2]} 26. Ng3
{[%clk 0:01:57.2]} 26... Qf6 {[%clk 0:00:42.6]} 27. Ne4 {[%clk 0:01:57.8]} 27...
Qf5 {[%clk 0:00:43.5]} 28. Ng3 {[%clk 0:01:58.3]} 28... Qf6 {[%clk 0:00:44.3]}
29. Qc2 {[%clk 0:01:47]} 29... Nd3 {[%clk 0:00:37.9]} 30. Rxe6 {[%clk
0:01:43.3]} 30... fxe6 {[%clk 0:00:34.5]} 31. Rd1 {[%clk 0:01:44.3]} 31... Nf4
{[%clk 0:00:29.4]} 32. Rxd8 {[%clk 0:01:42.9]} 32... Qxd8 {[%clk 0:00:31.3]} 33.
Qc1 {[%clk 0:01:36]} 33... Qd6 {[%clk 0:00:14.9]} 34. Qe1 {[%clk 0:01:32.6]}
34... h4 {[%clk 0:00:13.4]} 35. Nf1 {[%clk 0:01:29.4]} 35... Qd5 {[%clk
0:00:11.3]} 36. Ne3 {[%clk 0:01:26.8]} 36... Qxa2 {[%clk 0:00:11.7]} 37. Qd2
{[%clk 0:01:09]} 37... Qb1+ {[%clk 0:00:10.7]} 38. Kh2 {[%clk 0:01:10.1]} 38...
Qe4 {[%clk 0:00:12.2]} 39. Qd7+ {[%clk 0:01:04.7]} 39... Kf8 {[%clk 0:00:11.8]}
40. Qd8+ {[%clk 0:01:04.3]} 40... Kg7 {[%clk 0:00:10.5]} 41. Qc7+ {[%clk
0:01:01.8]} 41... Kf8 {[%clk 0:00:10.4]} 42. Qc8+ {[%clk 0:00:59.1]} 42... Kg7
{[%clk 0:00:10.8]} 43. Qc7+ {[%clk 0:00:57.4]} 43... Kf8 {[%clk 0:00:08.2]} 44.
Qd8+ {[%clk 0:00:58.1]} 44... Kg7 {[%clk 0:00:07.5]} 45. Qxh4 {[%clk 0:00:58.2]}
45... a5 {[%clk 0:00:04.6]} 46. Qe7+ {[%clk 0:00:55.5]} 46... Kh8 {[%clk
0:00:04.9]} 47. Qg5 {[%clk 0:00:53.4]} 47... a4 {[%clk 0:00:05.1]} 48. Qh4+
{[%clk 0:00:49.4]} 48... Kg7 {[%clk 0:00:06]} 49. g3 {[%clk 0:00:49]} 49... e5
{[%clk 0:00:07.4]} 50. Qe7+ {[%clk 0:00:45.9]} 50... Kh8 {[%clk 0:00:08.2]} 51.
Qf6+ {[%clk 0:00:40.2]} 51... Kh7 {[%clk 0:00:08.9]} 52. gxf4 {[%clk 0:00:40.4]}
52... exf4 {[%clk 0:00:10.8]} 53. Ng4 {[%clk 0:00:36.9]} 53... Qc2 {[%clk
0:00:10.9]} 54. Qe7+ {[%clk 0:00:34.9]} 54... Kh8 {[%clk 0:00:11.2]} 55. Qe5+
{[%clk 0:00:27.3]} 55... Kh7 {[%clk 0:00:09.9]} 56. Nf6+ {[%clk 0:00:27]} 56...
Kh6 {[%clk 0:00:07.9]} 57. Qxf4+ {[%clk 0:00:25.7]} 57... Kg7 {[%clk 0:00:08.8]}
58. Ng4 {[%clk 0:00:25.1]} 58... Qxb2 {[%clk 0:00:08.4]} 59. Qf6+ {[%clk
0:00:26.5]} 59... Kg8 {[%clk 0:00:08.7]} 60. Qxg6+ {[%clk 0:00:26.5]} 60... Kf8
{[%clk 0:00:10.1]} 61. Qf6+ {[%clk 0:00:24.3]} 61... Ke8 {[%clk 0:00:11.1]} 62.
Ne5 {[%clk 0:00:21.6]} 62... Qb5 {[%clk 0:00:12.1]} 63. Qe6+ {[%clk 0:00:16.1]}
63... Kf8 {[%clk 0:00:08.7]} 64. Qf7# {[%clk 0:00:14.9]} 1-0

[Event "*** Titled Tuesday Blitz"]
[Site "Chess.com"]
[Date "2018.11.06"]
[Round "5"]
[White "m3alam"]
[Black "nochewycandy"]
[Result "0-1"]
[WhiteElo "2122"]
[BlackElo "2192"]
[TimeControl "180+2"]
[EndTime "14:09:07 PST"]
[Termination "nochewycandy won by resignation"]

1. d4 {[%clk 0:03:01.9]} 1... d5 {[%clk 0:03:00.5]} 2. Nf3 {[%clk 0:03:01.8]}
2... Nf6 {[%clk 0:03:00.2]} 3. c4 {[%clk 0:03:01.6]} 3... c6 {[%clk 0:03:01.3]}
4. Nc3 {[%clk 0:03:01.6]} 4... a6 {[%clk 0:03:02.5]} 5. c5 {[%clk 0:03:01.8]}
5... g6 {[%clk 0:03:03]} 6. Bf4 {[%clk 0:03:01.4]} 6... Nh5 {[%clk 0:03:00.7]}
7. Be5 {[%clk 0:03:00.9]} 7... Bg7 {[%clk 0:03:00.7]} 8. Bxg7 {[%clk 0:02:53.1]}
8... Nxg7 {[%clk 0:03:02.6]} 9. e4 {[%clk 0:02:52.8]} 9... dxe4 {[%clk
0:03:03.9]} 10. Nxe4 {[%clk 0:02:50.3]} 10... O-O {[%clk 0:03:02.9]} 11. Bc4
{[%clk 0:02:50.5]} 11... Be6 {[%clk 0:03:03.6]} 12. Rc1 {[%clk 0:02:43.3]} 12...
Bxc4 {[%clk 0:03:02.9]} 13. Rxc4 {[%clk 0:02:43.7]} 13... Nd7 {[%clk 0:02:50.8]}
14. Rb4 {[%clk 0:02:37.7]} 14... Rb8 {[%clk 0:02:37.7]} 15. O-O {[%clk
0:02:37.1]} 15... Ne6 {[%clk 0:02:36]} 16. Qd2 {[%clk 0:02:28.7]} 16... Kg7
{[%clk 0:02:35]} 17. Re1 {[%clk 0:02:26.9]} 17... Nc7 {[%clk 0:02:23.6]} 18. Qg5
{[%clk 0:02:13.8]} 18... Nd5 {[%clk 0:02:22.4]} 19. Rb3 {[%clk 0:02:13.5]} 19...
h6 {[%clk 0:02:21.2]} 20. Qg3 {[%clk 0:02:10.1]} 20... N7f6 {[%clk 0:02:04.7]}
21. Ne5 {[%clk 0:02:04.9]} 21... Qa5 {[%clk 0:01:52.2]} 22. f4 {[%clk
0:01:53.1]} 22... Nxf4 {[%clk 0:01:43]} 23. Ra3 {[%clk 0:01:42.4]} 23... Qb4
{[%clk 0:01:29]} 24. Nxf6 {[%clk 0:01:31]} 24... exf6 {[%clk 0:01:23.2]} 25. Nf3
{[%clk 0:01:20.5]} 25... Qxb2 {[%clk 0:01:07.9]} 26. Rae3 {[%clk 0:01:11.1]}
26... Nd5 {[%clk 0:01:04.1]} 27. R3e2 {[%clk 0:01:06.6]} 27... Qc3 {[%clk
0:01:01.8]} 28. h4 {[%clk 0:00:58.5]} 28... h5 {[%clk 0:01:01.6]} 29. Qd6 {[%clk
0:00:54.5]} 29... Rbd8 {[%clk 0:00:58]} 30. Qg3 {[%clk 0:00:53.7]} 30... Rd7
{[%clk 0:00:34.8]} 31. Re8 {[%clk 0:00:48.5]} 31... Rxe8 {[%clk 0:00:30.5]} 32.
Rxe8 {[%clk 0:00:48.9]} 32... Qc1+ {[%clk 0:00:31.7]} 33. Kh2 {[%clk 0:00:49.6]}
33... Qf4 {[%clk 0:00:32.3]} 34. Qxf4 {[%clk 0:00:50.4]} 34... Nxf4 {[%clk
0:00:34.2]} 35. Rb8 {[%clk 0:00:46.3]} 35... Ne6 {[%clk 0:00:28.2]} 36. Kg3
{[%clk 0:00:44.1]} 36... Nxd4 {[%clk 0:00:26.3]} 37. Nxd4 {[%clk 0:00:44.6]}
37... Rxd4 {[%clk 0:00:28.2]} 38. Rxb7 {[%clk 0:00:45.6]} 38... Rc4 {[%clk
0:00:29.1]} 39. Rb6 {[%clk 0:00:45.6]} 39... Rxc5 {[%clk 0:00:29.7]} 40. Rxa6
{[%clk 0:00:46.9]} 40... Rc4 {[%clk 0:00:27.8]} 41. a4 {[%clk 0:00:45.2]} 41...
Rb4 {[%clk 0:00:25.3]} 42. a5 {[%clk 0:00:44.9]} 42... c5 {[%clk 0:00:26.4]} 43.
Rc6 {[%clk 0:00:44.9]} 43... c4 {[%clk 0:00:27.4]} 44. a6 {[%clk 0:00:44]} 44...
Ra4 {[%clk 0:00:28.3]} 45. Kf2 {[%clk 0:00:44.7]} 45... c3 {[%clk 0:00:27.3]}
46. Ke3 {[%clk 0:00:44.7]} 46... Rxh4 {[%clk 0:00:27.1]} 47. Kd3 {[%clk
0:00:44.8]} 47... Ra4 {[%clk 0:00:28.1]} 48. Kxc3 {[%clk 0:00:45.6]} 48... f5
{[%clk 0:00:21.5]} 49. Kb3 {[%clk 0:00:46.1]} 49... Ra1 {[%clk 0:00:22.6]} 50.
Kb4 {[%clk 0:00:45.1]} 50... Kh6 {[%clk 0:00:22.8]} 51. Kb5 {[%clk 0:00:45]}
51... Kg5 {[%clk 0:00:23.4]} 52. Rc4 {[%clk 0:00:45.8]} 52... f4 {[%clk
0:00:20.6]} 53. Ra4 {[%clk 0:00:46.1]} 53... Rb1+ {[%clk 0:00:22]} 54. Rb4
{[%clk 0:00:43.7]} 54... Ra1 {[%clk 0:00:23.2]} 55. Ra4 {[%clk 0:00:44.6]} 55...
Rd1 {[%clk 0:00:24.7]} 56. a7 {[%clk 0:00:44.5]} 56... Rd8 {[%clk 0:00:26.1]}
57. a8=Q {[%clk 0:00:44]} 57... Rxa8 {[%clk 0:00:27.7]} 58. Rxa8 {[%clk
0:00:45.4]} 58... Kg4 {[%clk 0:00:29]} 59. Kc4 {[%clk 0:00:46.7]} 59... Kg3
{[%clk 0:00:28]} 60. Ra2 {[%clk 0:00:47.8]} 60... f5 {[%clk 0:00:28]} 61. Kd4
{[%clk 0:00:48.1]} 61... g5 {[%clk 0:00:29.4]} 62. Ke5 {[%clk 0:00:47.6]} 62...
g4 {[%clk 0:00:23.6]} 63. Kxf5 {[%clk 0:00:47.8]} 63... h4 {[%clk 0:00:25]} 64.
Kg5 {[%clk 0:00:48]} 64... f3 {[%clk 0:00:21.4]} 65. gxf3 {[%clk 0:00:48.6]}
65... gxf3 {[%clk 0:00:23.3]} 66. Kh5 {[%clk 0:00:19.1]} 66... h3 {[%clk
0:00:23.1]} 67. Ra8 {[%clk 0:00:19.4]} 67... h2 {[%clk 0:00:23]} 68. Rg8+ {[%clk
0:00:20.5]} 68... Kf2 {[%clk 0:00:23.6]} 69. Kg4 {[%clk 0:00:18.3]} 69... h1=Q
{[%clk 0:00:23.8]} 0-1

[Event "*** Titled Tuesday Blitz"]
[Site "Chess.com"]
[Date "2018.11.06"]
[Round "5"]
[White "FairChess_on_YouTube"]
[Black "kuli4ik"]
[Result "0-1"]
[WhiteElo "2918"]
[BlackElo "2798"]
[TimeControl "180+2"]
[EndTime "14:09:12 PST"]
[Termination "kuli4ik won by resignation"]

1. d4 {[%clk 0:03:01.5]} 1... d5 {[%clk 0:03:00.7]} 2. Nf3 {[%clk 0:03:00]} 2...
c6 {[%clk 0:03:01.7]} 3. Bf4 {[%clk 0:03:00]} 3... Bf5 {[%clk 0:03:02.2]} 4. e3
{[%clk 0:02:59.7]} 4... e6 {[%clk 0:03:03.4]} 5. Be2 {[%clk 0:02:57]} 5... h6
{[%clk 0:03:03.8]} 6. O-O {[%clk 0:02:57.4]} 6... Nf6 {[%clk 0:03:05.1]} 7. c4
{[%clk 0:02:58.2]} 7... Be7 {[%clk 0:03:03.1]} 8. Qb3 {[%clk 0:02:55.6]} 8...
Qc8 {[%clk 0:03:03.6]} 9. Nc3 {[%clk 0:02:52.7]} 9... O-O {[%clk 0:03:03.2]} 10.
Rac1 {[%clk 0:02:48.6]} 10... Nbd7 {[%clk 0:03:03.6]} 11. h3 {[%clk 0:02:45.2]}
11... Nb6 {[%clk 0:03:04.4]} 12. Nd2 {[%clk 0:02:38.3]} 12... Re8 {[%clk
0:02:56.7]} 13. Bh2 {[%clk 0:02:39]} 13... Bh7 {[%clk 0:02:56.4]} 14. a4 {[%clk
0:02:38]} 14... dxc4 {[%clk 0:02:53]} 15. Nxc4 {[%clk 0:02:32.1]} 15... Nxc4
{[%clk 0:02:53.7]} 16. Qxc4 {[%clk 0:02:33.7]} 16... a5 {[%clk 0:02:51.6]} 17.
f3 {[%clk 0:02:22.5]} 17... Nd5 {[%clk 0:02:48.4]} 18. Nd1 {[%clk 0:02:14.2]}
18... Qd7 {[%clk 0:02:40.7]} 19. Kh1 {[%clk 0:02:08.7]} 19... Red8 {[%clk
0:02:37.7]} 20. e4 {[%clk 0:02:05.2]} 20... Nb4 {[%clk 0:02:20.3]} 21. Bg1
{[%clk 0:02:05.7]} 21... Rac8 {[%clk 0:02:13.7]} 22. Nc3 {[%clk 0:02:02.9]}
22... Bg5 {[%clk 0:02:02.4]} 23. Rcd1 {[%clk 0:01:59.6]} 23... Bf4 {[%clk
0:02:00.6]} 24. Na2 {[%clk 0:01:53.3]} 24... Nxa2 {[%clk 0:01:39]} 25. Qxa2
{[%clk 0:01:55.2]} 25... Qc7 {[%clk 0:01:26.6]} 26. Bc4 {[%clk 0:01:52.7]} 26...
Kh8 {[%clk 0:01:25.3]} 27. Qb3 {[%clk 0:01:47.1]} 27... Rd7 {[%clk 0:01:23.5]}
28. Rd3 {[%clk 0:01:27.6]} 28... Qd8 {[%clk 0:01:22.4]} 29. Rfd1 {[%clk
0:01:25.6]} 29... Bg6 {[%clk 0:01:23.4]} 30. Qc3 {[%clk 0:01:19.5]} 30... Kh7
{[%clk 0:01:20.4]} 31. Be3 {[%clk 0:01:16.3]} 31... Bd6 {[%clk 0:01:17.7]} 32.
Qb3 {[%clk 0:01:12.5]} 32... Bb4 {[%clk 0:01:16.9]} 33. Bd2 {[%clk 0:01:09.2]}
33... Bxd2 {[%clk 0:01:16.8]} 34. R3xd2 {[%clk 0:01:09.2]} 34... Qc7 {[%clk
0:01:15.9]} 35. Qe3 {[%clk 0:01:05]} 35... Rcd8 {[%clk 0:01:14.4]} 36. b3 {[%clk
0:01:05.3]} 36... Qb6 {[%clk 0:01:15.3]} 37. Qc3 {[%clk 0:01:04.2]} 37... Qa7
{[%clk 0:01:12.7]} 38. Be2 {[%clk 0:00:54.7]} 38... Qb6 {[%clk 0:01:10.8]} 39.
Bc4 {[%clk 0:00:55.3]} 39... Qa7 {[%clk 0:01:11.7]} 40. Be2 {[%clk 0:00:50.6]}
40... Qb6 {[%clk 0:01:12.6]} 41. Rd3 {[%clk 0:00:51.6]} 41... Qa7 {[%clk
0:01:06.4]} 42. Kh2 {[%clk 0:00:47.3]} 42... Qb6 {[%clk 0:00:53.7]} 43. Kh1
{[%clk 0:00:44.3]} 43... Qa7 {[%clk 0:00:54.5]} 44. Bf1 {[%clk 0:00:35.7]} 44...
Qb6 {[%clk 0:00:55.4]} 45. R3d2 {[%clk 0:00:36.8]} 45... Kg8 {[%clk 0:00:56]}
46. Bc4 {[%clk 0:00:36.6]} 46... Kh7 {[%clk 0:00:56.9]} 47. Kh2 {[%clk
0:00:35.7]} 47... Kg8 {[%clk 0:00:56.7]} 48. Kg3 {[%clk 0:00:36.5]} 48... Kh7
{[%clk 0:00:57.2]} 49. Be2 {[%clk 0:00:35.2]} 49... Qa7 {[%clk 0:00:56.2]} 50.
Kh2 {[%clk 0:00:29.4]} 50... Qb6 {[%clk 0:00:57.1]} 51. Kh1 {[%clk 0:00:29.7]}
51... Kg8 {[%clk 0:00:57.7]} 52. Rd3 {[%clk 0:00:30.2]} 52... Kh7 {[%clk
0:00:57.4]} 53. Kg1 {[%clk 0:00:27.9]} 53... Rxd4 {[%clk 0:00:43.8]} 54. Rxd4
{[%clk 0:00:25.8]} 54... e5 {[%clk 0:00:45]} 55. Kf1 {[%clk 0:00:14.4]} 55...
Rxd4 {[%clk 0:00:42.6]} 56. Rxd4 {[%clk 0:00:15.4]} 56... exd4 {[%clk
0:00:42.9]} 57. Qc4 {[%clk 0:00:16.1]} 57... Qb4 {[%clk 0:00:34.6]} 58. Qxb4
{[%clk 0:00:17.3]} 58... axb4 {[%clk 0:00:36.5]} 59. a5 {[%clk 0:00:19.2]} 59...
f5 {[%clk 0:00:35.1]} 60. e5 {[%clk 0:00:19.1]} 60... Bf7 {[%clk 0:00:35]} 61.
Bd1 {[%clk 0:00:20.1]} 61... f4 {[%clk 0:00:28.7]} 62. Ke1 {[%clk 0:00:19.5]}
62... Bd5 {[%clk 0:00:25.9]} 63. Kd2 {[%clk 0:00:19.9]} 63... c5 {[%clk
0:00:21.1]} 64. Bc2+ {[%clk 0:00:18.2]} 64... g6 {[%clk 0:00:21.3]} 65. Bd3
{[%clk 0:00:17.3]} 65... Kg7 {[%clk 0:00:21]} 66. Bb5 {[%clk 0:00:16.9]} 66...
Kf7 {[%clk 0:00:21.5]} 67. Bd7 {[%clk 0:00:18]} 67... g5 {[%clk 0:00:22.8]} 68.
Kd3 {[%clk 0:00:17.5]} 68... Ke7 {[%clk 0:00:23.9]} 69. Bc8 {[%clk 0:00:18.6]}
69... Kd8 {[%clk 0:00:24.3]} 70. Bf5 {[%clk 0:00:19.5]} 70... Kc7 {[%clk
0:00:25.5]} 71. Be4 {[%clk 0:00:19.6]} 71... Bxb3 {[%clk 0:00:26.6]} 72. Bf5
{[%clk 0:00:17.8]} 72... Bd5 {[%clk 0:00:27.3]} 73. e6 {[%clk 0:00:19.2]} 73...
Kd6 {[%clk 0:00:28.2]} 0-1

[Event "*** Titled Tuesday Blitz"]
[Site "Chess.com"]
[Date "2018.11.06"]
[Round "5"]
[White "mishanick"]
[Black "AlexTriapishko"]
[Result "1-0"]
[WhiteElo "2929"]
[BlackElo "2766"]
[TimeControl "180+2"]
[EndTime "14:09:12 PST"]
[Termination "mishanick won by resignation"]

1. d4 {[%clk 0:03:01.6]} 1... d5 {[%clk 0:02:55.2]} 2. c4 {[%clk 0:03:02.9]}
2... e6 {[%clk 0:02:55.3]} 3. Nf3 {[%clk 0:03:04.1]} 3... a6 {[%clk 0:02:54]} 4.
cxd5 {[%clk 0:03:01.2]} 4... exd5 {[%clk 0:02:55.9]} 5. Nc3 {[%clk 0:03:02.6]}
5... Nf6 {[%clk 0:02:49.6]} 6. Bg5 {[%clk 0:03:03]} 6... Be6 {[%clk 0:02:51.1]}
7. e3 {[%clk 0:03:04.4]} 7... Nbd7 {[%clk 0:02:50.6]} 8. Bd3 {[%clk 0:03:05.5]}
8... h6 {[%clk 0:02:51.8]} 9. Bh4 {[%clk 0:03:05.4]} 9... g5 {[%clk 0:02:53.1]}
10. Bg3 {[%clk 0:03:06.8]} 10... Nh5 {[%clk 0:02:54.7]} 11. Be5 {[%clk
0:03:08.2]} 11... Ng7 {[%clk 0:02:54.9]} 12. Bg3 {[%clk 0:03:09.2]} 12... Nh5
{[%clk 0:02:56.1]} 13. Be5 {[%clk 0:03:09.3]} 13... Ng7 {[%clk 0:02:57.1]} 14.
h3 {[%clk 0:03:05]} 14... Nxe5 {[%clk 0:02:34.1]} 15. Nxe5 {[%clk 0:03:06.9]}
15... Bd6 {[%clk 0:02:26.9]} 16. O-O {[%clk 0:03:07.5]} 16... Bxe5 {[%clk
0:01:57.8]} 17. dxe5 {[%clk 0:03:09.4]} 17... g4 {[%clk 0:01:58.4]} 18. hxg4
{[%clk 0:02:59.4]} 18... h5 {[%clk 0:01:59.8]} 19. g5 {[%clk 0:02:31]} 19...
Qxg5 {[%clk 0:01:43.6]} 20. f4 {[%clk 0:02:32.2]} 20... Qg3 {[%clk 0:01:03.3]}
21. Rf3 {[%clk 0:01:39.1]} 21... Qg4 {[%clk 0:01:02.9]} 22. Qa4+ {[%clk
0:01:35.8]} 22... Bd7 {[%clk 0:00:24.6]} 23. Qb3 {[%clk 0:01:36.3]} 23... c6
{[%clk 0:00:26.1]} 24. Qxb7 {[%clk 0:01:31.8]} 24... O-O {[%clk 0:00:27.2]} 25.
Ne2 {[%clk 0:01:21.2]} 25... Rab8 {[%clk 0:00:24]} 26. Qc7 {[%clk 0:01:19.8]}
26... h4 {[%clk 0:00:23.6]} 27. b3 {[%clk 0:01:04.5]} 27... Rbc8 {[%clk
0:00:23.3]} 28. Qd6 {[%clk 0:01:03.9]} 28... Bf5 {[%clk 0:00:24.2]} 29. Bxf5
{[%clk 0:00:46.7]} 29... Nxf5 {[%clk 0:00:26.1]} 30. Qf6 {[%clk 0:00:47.6]}
30... Rfe8 {[%clk 0:00:10.7]} 31. Nd4 {[%clk 0:00:48.6]} 31... Nxd4 {[%clk
0:00:10.6]} 32. exd4 {[%clk 0:00:49.6]} 32... Re6 {[%clk 0:00:12.1]} 33. Qg5+
{[%clk 0:00:50.7]} 33... Qxg5 {[%clk 0:00:13.6]} 34. fxg5 {[%clk 0:00:52.6]}
34... c5 {[%clk 0:00:14.7]} 35. Rc1 {[%clk 0:00:52.4]} 35... Rec6 {[%clk
0:00:11.8]} 36. Rf6 {[%clk 0:00:42.5]} 36... c4 {[%clk 0:00:08.4]} 37. Rxc6
{[%clk 0:00:35.9]} 37... Rxc6 {[%clk 0:00:10.3]} 38. Kf2 {[%clk 0:00:37.1]}
38... Kg7 {[%clk 0:00:07.8]} 39. bxc4 {[%clk 0:00:36.9]} 39... dxc4 {[%clk
0:00:09.1]} 40. Ke3 {[%clk 0:00:38.1]} 40... c3 {[%clk 0:00:09]} 41. Kd3 {[%clk
0:00:38.9]} 41... Rg6 {[%clk 0:00:09]} 42. Rxc3 {[%clk 0:00:39.3]} 42... Rxg5
{[%clk 0:00:10.5]} 43. Rc2 {[%clk 0:00:40.7]} 43... Kg6 {[%clk 0:00:09.2]} 44.
Ke4 {[%clk 0:00:41.9]} 44... Rg4+ {[%clk 0:00:10]} 45. Kd5 {[%clk 0:00:43.1]}
45... a5 {[%clk 0:00:09.9]} 46. a4 {[%clk 0:00:39.8]} 46... Kg7 {[%clk
0:00:09.4]} 47. Rf2 {[%clk 0:00:39.7]} 47... Kg6 {[%clk 0:00:09.2]} 48. Kc5
{[%clk 0:00:40.9]} 48... Re4 {[%clk 0:00:09.1]} 49. Kd5 {[%clk 0:00:31.4]} 49...
Rg4 {[%clk 0:00:09.5]} 50. Rb2 {[%clk 0:00:32.3]} 50... Rf4 {[%clk 0:00:07.1]}
51. Kc5 {[%clk 0:00:22.8]} 51... Re4 {[%clk 0:00:07.7]} 52. Rf2 {[%clk
0:00:23.4]} 52... Kg7 {[%clk 0:00:07.8]} 53. Kd5 {[%clk 0:00:21.8]} 53... Rg4
{[%clk 0:00:08.7]} 54. Rc2 {[%clk 0:00:21.8]} 54... Kg6 {[%clk 0:00:08.5]} 55.
Rc6+ {[%clk 0:00:16.5]} 55... Kg7 {[%clk 0:00:09.1]} 56. Rc7 {[%clk 0:00:12.1]}
56... Kg6 {[%clk 0:00:09.3]} 57. Rc2 {[%clk 0:00:13.7]} 57... Rf4 {[%clk
0:00:09.5]} 58. Kc5 {[%clk 0:00:15.3]} 58... Re4 {[%clk 0:00:09.5]} 59. Rd2
{[%clk 0:00:16.2]} 59... Kg7 {[%clk 0:00:06.8]} 60. Kc6 {[%clk 0:00:17.4]} 60...
Kf8 {[%clk 0:00:06.4]} 61. Kd7 {[%clk 0:00:17.7]} 61... Kg7 {[%clk 0:00:05.2]}
62. d5 {[%clk 0:00:19]} 62... Rxe5 {[%clk 0:00:06.1]} 63. d6 {[%clk 0:00:20.6]}
63... Kf8 {[%clk 0:00:07.2]} 64. Kd8 {[%clk 0:00:21.5]} 64... Re4 {[%clk
0:00:07.2]} 65. d7 {[%clk 0:00:22.3]} 65... Rc4 {[%clk 0:00:05.8]} 66. Rd5
{[%clk 0:00:20.2]} 66... Kg7 {[%clk 0:00:03.2]} 67. Ke7 {[%clk 0:00:20.9]} 67...
Re4+ {[%clk 0:00:04.1]} 68. Kd6 {[%clk 0:00:22.2]} 68... Re6+ {[%clk 0:00:04.6]}
69. Kc5 {[%clk 0:00:23.4]} 1-0